[Event "1st Bella Italia International 2022"]
[Site "Lignano"]
[Date "2022.08.22"]
[Round "8.9"]
[White "Cino, Giuseppe Adalberto"]
[Black "Bettalli, Francesco"]
[Result "0-1"]
[ECO "B36"]
[WhiteElo "1976"]
[BlackElo "2237"]
[Annotator "NA RC"]
[PlyCount "136"]
[EventDate "2022.08.18"]
[EventCountry "ITA"]
[SourceTitle "playchess.com"]
[Source "ChessBase"]
[SourceQuality "1"]
[TimeControl "5400+30"]

1. c4 {[%emt 0:00:31]} c5 {[%emt 0:10:55]} 2. Nf3 {[%emt 0:00:06]} g6 {[%emt 0:00:04]} 3. Nc3 {[%emt 0:00:21]} Nc6 {[%emt 0:00:18]} 4. d4 {[%emt 0:00:06]} cxd4 {[%emt 0:00:04]} 5. Nxd4 {[%emt 0:00:04]} Nf6 {[%emt 0:00:09]} 6. e4 {[%emt 0:00:26]} d6 {[%emt 0:00:04]} 7. Be2 {[%emt 0:00:51]} Nxd4 {[%emt 0:00:05]} 8. Qxd4 {[%emt 0:00:04]} Bg7 {[%emt 0:00:05]} 9. O-O {[%emt 0:00:30]} O-O {[%emt 0:00:08]} 10. h3 {[%emt 0:01:38]} a5 {[%emt 0:05:51]} 11. Qd3 {[%emt 0:03:27]} a4 {[%emt 0:00:47]} 12. Be3 {[%emt 0:01:43]} Qa5 {[%emt 0:00:54]} 13. Rfc1 {[%emt 0:02:31]} Be6 {[%emt 0:00:56]} 14. Rab1 {[%emt 0:00:37]} Rfc8 {[%emt 0:00:19]} 15. b4 {[%emt 0:02:02]} axb3 {[%emt 0:00:05]} 16. axb3 {[%emt 0:00:06]} Nd7 {[%emt 0:03:17]} 17. Bd4 {[%emt 0:05:41]} Nc5 {[%emt 0:01:58]} 18. Qd1 {[%emt 0:00:44]} Bxd4 {[%emt 0:00:22]} 19. Qxd4 {[%emt 0:00:05]} Qb4 {[%emt 0:00:27]} 20. Nb5 {[%emt 0:07:54]} Ra2 {[%emt 0:01:08]} 21. Qc3 {[%emt 0:06:15]} Qxc3 {[%emt 0:01:03]} 22. Nxc3 {[%emt 0:00:13]} Ra3 {[%emt 0:02:04]} 23. Bd1 {[%emt 0:04:24]} Nd3 {[%emt 0:03:03]} 24. Ra1 {[%emt 0:04:34]} Rca8 {[%emt 0:00:39]} 25. Rxa3 {[%emt 0:00:17]} Rxa3 {[%emt 0:00:01]} 26. Rb1 {[%emt 0:00:08]} Bxc4 {[%emt 0:01:09]} 27. Be2 {[%emt 0:13:39]} Ba6 {[%emt 0:00:42]} 28. Bxd3 {[%emt 0:00:55]} Bxd3 {[%emt 0:00:04]} 29. Rb2 {[%emt 0:00:06]} Ra1+ {[%emt 0:02:28]} 30. Kh2 {[%emt 0:00:10]} Rc1 {[%emt 0:00:28]} 31. Nd5 {[%emt 0:00:24]} Kf8 {[%emt 0:02:53]} 32. f3 {[%emt 0:00:13]} Rc2 {[%emt 0:00:07]} 33. Rxc2 {[%emt 0:00:55]} Bxc2 {[%emt 0:00:01]} 34. b4 {[%emt 0:00:13]} Bb3 {[%emt 0:00:04]} 35. Nc3 {[%emt 0:01:13]} e6 {[%emt 0:00:26]} 36. Kg3 {[%emt 0:01:01]} Ke7 {[%emt 0:00:08]} 37. Kf4 {[%emt 0:00:10]} h6 {[%emt 0:00:30]} 38. h4 {[%emt 0:00:30]} e5+ {[%emt 0:00:37]} 39. Ke3 {[%emt 0:00:13]} Ke6 {[%emt 0:00:01]} 40. g3 {[%emt 0:00:46]} d5 {[%emt 0:00:20]} 41. exd5+ {[%emt 0:00:07]} Bxd5 {[%emt 0:00:01]} 42. f4 {[%emt 0:00:40]} Bc6 {[%emt 0:02:08]} 43. g4 {[%emt 0:07:34]} exf4+ {[%emt 0:01:34]} 44. Kxf4 {[%emt 0:00:11]} f6 {[%emt 0:00:21]} 45. Ke3 {[%emt 0:05:15]} Ke5 {[%emt 0:00:10]} 46. Ne2 {[%emt 0:00:12]} Bd7 {[%emt 0:01:13]} 47. Nf4 {[%emt 0:00:45]} g5 {[%emt 0:01:42]} 48. hxg5 {[%emt 0:01:18]} fxg5 {[%emt 0:00:17]} 49. Nd3+ {[%emt 0:00:58]} Kd5 {[%emt 0:00:10]} 50. Nc5 {[%emt 0:02:33]} Bc8 {[%emt 0:00:18]} 51. Ne4 {[%emt 0:00:23]} Ke5 {[%emt 0:00:14]} 52. Nf2 {[%emt 0:09:24]} b6 {[%emt 0:00:13]} 53. Kd3 {[%emt 0:03:49]} Kf4 {[%emt 0:00:09]} 54. Kd4 {[%emt 0:00:09]} Bxg4 {[%emt 0:00:52]} 55. Nd3+ {[%emt 0:00:03]} Kf5 {[%emt 0:00:51]} 56. Ne5 {[%emt 0:00:28]} Be2 {[%emt 0:00:09]} 57. Nf7 {[%emt 0:00:24]} h5 {[%emt 0:00:09]} 58. Ke3 {[%emt 0:01:52]} Bf1 {[%emt 0:00:17]} 59. b5 {[%emt 0:00:27]} Kf6 {[%emt 0:00:56]} 60. Nd6 {[%emt 0:00:14]} h4 {[%emt 0:00:41]} 61. Kf2 {[%emt 0:00:35]} Bd3 {[%emt 0:00:27]} 62. Nc8 {[%emt 0:00:14]} Bxb5 {[%emt 0:00:06]} 63. Nxb6 {[%emt 0:00:02]} g4 {[%emt 0:02:02]} 64. Nd5+ {[%emt 0:00:17]} Kg5 {[%emt 0:00:03]} 65. Ne3 {[%emt 0:00:27]} g3+ {[%emt 0:00:12]} 66. Kg1 {[%emt 0:01:31]} h3 {[%emt 0:00:11]} 67. Ng2 {[%emt 0:04:37]} Bc6 {[%emt 0:00:20]} 68. Kh1 {[%emt 0:00:44]} Bxg2+ {[%emt 0:00:05]} 0-1

[Event "1st Bella Italia International 2022"]
[Site "Lignano"]
[Date "2022.08.22"]
[Round "8.10"]
[White "Zuttioni, Federico"]
[Black "Micottis, Dorian"]
[Result "0-1"]
[ECO "B13"]
[WhiteElo "2161"]
[BlackElo "2263"]
[Annotator "TA"]
[PlyCount "172"]
[EventDate "2022.08.18"]
[EventCountry "ITA"]
[SourceTitle "playchess.com"]
[Source "ChessBase"]
[SourceQuality "1"]
[TimeControl "5400+30"]

{[%evp 17,172,26,30,0,0,6,0,-8,-1,-5,0,-21,-17,-19,-19,-18,-13,-16,-13,-35,-9,-8,-8,0,0,-14,-19,-15,-20,-90,-90,-90,-86,-90,-72,-90,-77,-88,-53,-73,-79,-78,-68,-85,-85,-92,-92,-95,-95,-90,-87,-154,-80,-141,-51,-51,-51,-51,-51,-69,-73,-80,-60,-85,-85,-78,-60,-67,-60,-78,-60,-60,-63,-70,-52,-145,-145,-185,-190,-183,-24,-24,-24,-145,-8,-14,0,-5,0,0,0,-12,0,0,-7,-21,-21,-21,-21,-28,-28,-28,-21,-21,-21,-21,0,-21,0,-21,-21,-21,-21,-21,0,-21,0,0,0,0,0,0,0,0,0,0,0,0,0,0,0,0,0,0,0,0,0,0,0,0,0,0,0,0,0,0,0,0,0,-29974,-29975,-29985,-29986,-29986,-29987,-29987,0]} 1. e4 {[%emt 0:13:51]} c6 {[%emt 0:00:17]} 2. d4 {[%emt 0:00:22]} d5 {[%emt 0:00:05]} 3. exd5 {[%emt 0:00:10]} cxd5 {[%emt 0:00:06]} 4. Bd3 {[%emt 0:00:15]} Nc6 {[%emt 0:00:06]} 5. c3 {[%emt 0:00:07]} Nf6 {[%emt 0:00:06]} 6. Bf4 {[%emt 0:00:14]} Bg4 {[%emt 0:00:22]} 7. Qb3 {[%emt 0:00:10]} Qd7 {[%emt 0:00:42]} 8. Nd2 {[%emt 0:00:14]} e6 {[%emt 0:00:29]} 9. Ngf3 {[%emt 0:00:08]} Bd6 {[%emt 0:00:19]} 10. Bg3 {[%emt 0:00:17] B13: Caro-Kann: Exchange Variation and Panov-Botvinnik Attack.} Bxg3 {[%emt 0:00:55]} 11. hxg3 {[%emt 0:00:52]} Qc7 {[%emt 0:00:16] [#] Against Ne5} 12. a4 $146 {[%emt 0:07:11] The position is equal.} ({Predecessor:} 12. O-O O-O 13. Rfe1 Rfd8 14. Rac1 Rab8 15. a4 Ne7 16. Qc2 Bf5 17. Ne5 h5 18. b4 g6 19. a5 Bxd3 20. Nxd3 Nf5 21. Nc5 Ng4 22. Nf1 Rbc8 23. Qd2 Re8 {½-½ (23) De la Colina,N (2091)-Glashausser,S (1906) Chicago 2022}) 12... h5 {[%emt 0:11:33]} 13. Qa3 {[%emt 0:18:01]} g6 {[%emt 0:10:09]} 14. b4 {[%emt 0:14:24]} Bxf3 {[%emt 0:05:38]} 15. Nxf3 {[%emt 0:04:15]} O-O {[%emt 0:01:15]} 16. O-O {[%emt 0:01:40]} Rac8 {[%emt 0:08:46]} 17. Rfe1 {[%emt 0:01:05]} Rfe8 {[%emt 0:02:35]} 18. Rac1 {[%emt 0:01:10]} Kg7 {[%emt 0:01:14]} 19. Qb2 {[%emt 0:03:50]} Qb6 {[%emt 0:10:46]} 20. Qd2 {[%emt 0:01:46]} Ng4 {[%emt 0:04:25]} 21. Qf4 {[%emt 0:05:26]} Qd8 {[%emt 0:13:23]} 22. Ng5 {[%emt 0:03:04]} Qf6 {[%emt 0:01:20]} 23. f3 {[%emt 0:01:10]} (23. Qd2 $11 {keeps the balance.}) 23... Qxf4 $17 {[%emt 0:02:47] Chess con chili.} 24. gxf4 {[%emt 0:00:16]} Nf6 {[%emt 0:02:27]} 25. Kf2 {[%emt 0:00:55]} Rc7 {[%emt 0:01:23] White must now prevent ...Rec8.} 26. Ke3 {[%emt 0:03:55]} Rec8 {[%emt 0:01:58][%cal Oc6b4]} 27. Kd2 {[%emt 0:00:16]} h4 {[%emt 0:04:42]} 28. Rc2 {[%emt 0:02:58]} Nh5 {[%emt 0:00:23]} 29. Nh3 {[%emt 0:00:20]} Ne7 {[%emt 0:01:39]} 30. Rec1 {[%emt 0:02:53]} Ng3 {[%emt 0:01:05]} 31. Nf2 {[%emt 0:03:34]} Nef5 {[%emt 0:00:19]} 32. Bxf5 {[%emt 0:03:18]} Nxf5 {[%emt 0:00:05]} ({Much weaker is} 32... gxf5 $6 33. Nd3 $11) 33. Nd3 {[%emt 0:00:20]} b6 {[%emt 0:03:40]} 34. Ra2 {[%emt 0:02:19]} (34. b5 $142) 34... Nd6 {[%emt 0:02:44] Black is more active.} (34... h3 $142 $1 {[%cal Rh3g2]} 35. gxh3 Rh8) 35. Nb2 {[%emt 0:00:31]} (35. Ne5 $142) 35... Nc4+ {[%emt 0:04:30]} (35... h3 $17 36. gxh3 Nf5) 36. Nxc4 $15 {[%emt 0:00:08]} Rxc4 {[%emt 0:00:04][%mdl 4096] Endgame KRR-KRR} 37. a5 {[%emt 0:01:06]} b5 {[%emt 0:00:50][%cal Oh4h3]} 38. a6 {[%emt 0:01:39]} R4c6 {[%emt 0:00:52]} 39. Ra5 {[%emt 0:00:10]} Rb6 {[%emt 0:00:14]} 40. Rh1 {[%emt 0:00:18]} Rh8 $1 {[%emt 0:00:59]} 41. Ke3 {[%emt 0:03:41]} Rh5 {[%emt 0:00:22]} 42. Rh3 {[%emt 0:00:42]} Kf6 {[%emt 0:00:11]} 43. Rh2 {[%emt 0:00:27]} Ke7 {[%emt 0:01:23]} 44. Kf2 {[%emt 0:00:54]} Rb8 {[%emt 0:00:48]} 45. Rh3 {[%emt 0:01:35]} Kd6 {[%emt 0:00:13]} 46. g3 {[%emt 0:00:56]} (46. Ke2 $15) 46... hxg3+ $17 {[%emt 0:00:27]} 47. Kxg3 {[%emt 0:00:02]} Rxh3+ {[%emt 0:01:19]} 48. Kxh3 {[%emt 0:00:03] [#] KR-KR} Kc6 $2 {[%emt 0:00:19]} ({Worse is} 48... Rc8 49. Rxb5 Rc6 50. Rb7 Rxa6 51. Rxf7 $11) (48... Ke7 $1 $19 {Hoping for ...Rb6.} 49. Kg3 Kf6) 49. Ra1 {[%emt 0:00:26]} Rh8+ {[%emt 0:00:10]} 50. Kg2 {[%emt 0:00:48] [#]} (50. Kg4 $11 {remains equal.}) 50... Kb6 {[%emt 0:00:45]} ({Black should play} 50... Kd7 $1 $17 {With the idea ...Rc8.} 51. Ra5 Rb8) 51. Kg3 $11 {[%emt 0:00:14]} Rh5 {[%emt 0:01:13]} 52. Kg2 {[%emt 0:00:27]} Rf5 {[%emt 0:02:07]} 53. Kg3 {[%emt 0:00:06]} Rh5 {[%emt 0:00:18]} 54. Kg2 {[%emt 0:00:10]} Rf5 {[%emt 0:00:15]} 55. Kg3 {[%emt 0:00:06]} g5 {[%emt 0:00:10]} 56. fxg5 {[%emt 0:00:13]} Rxg5+ {[%emt 0:00:04]} 57. Kf2 {[%emt 0:00:29]} Rg8 {[%emt 0:01:08]} 58. Ra2 {[%emt 0:02:45]} Rc8 {[%emt 0:00:41]} 59. Ra3 {[%emt 0:00:12]} f6 {[%emt 0:01:18]} 60. f4 {[%emt 0:00:44] Inhibits e5.} Rh8 {[%emt 0:00:48]} 61. Ra1 {[%emt 0:00:30]} Rc8 {[%emt 0:00:55]} 62. Ra3 {[%emt 0:00:19]} Rh8 {[%emt 0:00:23]} 63. Ra1 {[%emt 0:00:11]} Rh2+ {[%emt 0:00:18]} 64. Ke3 $1 {[%emt 0:00:20]} Rh3+ {[%emt 0:00:17]} 65. Kd2 {[%emt 0:00:13]} Rh2+ {[%emt 0:00:59]} 66. Kd3 {[%emt 0:00:53]} Kc6 {[%emt 0:00:32]} 67. f5 {[%emt 0:01:22]} Rh3+ {[%emt 0:00:25]} 68. Kd2 {[%emt 0:00:24]} exf5 {[%emt 0:00:09]} 69. Rf1 {[%emt 0:00:21]} Rh5 {[%emt 0:00:20]} 70. Ke3 {[%emt 0:00:44]} Kb6 {[%emt 0:00:16]} 71. Kf4 {[%emt 0:00:23]} Kxa6 {[%emt 0:01:03]} 72. Re1 {[%emt 0:00:17]} Rh3 {[%emt 0:00:16]} 73. Re6+ {[%emt 0:00:29]} Kb7 {[%emt 0:00:03]} 74. Rxf6 {[%emt 0:00:42]} Rxc3 {[%emt 0:00:20]} 75. Ke5 {[%emt 0:00:40]} Rc4 {[%emt 0:00:28]} 76. Rf7+ {[%emt 0:00:13]} Kc6 {[%emt 0:00:49]} 77. Rf6+ {[%emt 0:00:23]} Kd7 {[%emt 0:00:50]} 78. Rxf5 {[%emt 0:00:25]} Rxb4 {[%emt 0:00:32] Threatens to win with ...Kc6.} 79. Rf7+ {[%emt 0:00:07]} Kc6 {[%emt 0:00:18] And now ...Rb1 would win.} 80. Rxa7 {[%emt 0:00:19]} Ra4 {[%emt 0:00:21]} 81. Rh7 {[%emt 0:00:25]} b4 {[%emt 0:00:23][%cal Bb5b4,Bb4b3][%mdl 32]} 82. Rh6+ {[%emt 0:00:18]} Kb5 {[%emt 0:00:04] aiming for ...b3.} 83. Rd6 $2 {[%emt 0:01:35][%mdl 8192]} (83. Kxd5 $11 b3 84. Rh8) 83... b3 {[%emt 0:01:02] Black mates.} 84. Rxd5+ {[%emt 0:00:06]} Kb4 {[%emt 0:00:23]} 85. Rd8 {[%emt 0:00:36]} Ra5+ {[%emt 0:00:16]} 86. d5 {[%emt 0:00:20]} Kb5 $2 {[%emt 0:02:21][%mdl 32768] Weighted Error Value: White=0.18 (very precise) /Black=0.15 (very precise) . Sensor Board Error (Ke4/e5)?} (86... b2 {mates} 87. Rb8+ Rb5 88. Rg8 b1=Q 89. Kf4 Qd3 90. Rg5 Qd4+ 91. Kg3 Ka5 92. Rg4 Qe3+ 93. Kh4 Rxd5 94. Rg6 Qf4+ 95. Kh3 Rh5+ 96. Kg2 Rh2+ 97. Kg1 Qf2#) 0-1

[Event "1st Bella Italia International 2022"]
[Site "Lignano"]
[Date "2022.08.22"]
[Round "8.11"]
[White "Gelle, Istvan"]
[Black "Heredia Serrano, Carla"]
[Result "0-1"]
[ECO "B13"]
[WhiteElo "2218"]
[BlackElo "2090"]
[Annotator "NA RC"]
[PlyCount "34"]
[EventDate "2022.08.18"]
[EventCountry "ITA"]
[SourceTitle "playchess.com"]
[Source "ChessBase"]
[SourceQuality "1"]
[TimeControl "5400+30"]

1. d4 {[%emt 0:00:03]} d5 {[%emt 0:11:44]} 2. Bf4 {[%emt 0:00:10]} Nf6 {[%emt 0:00:21]} 3. e3 {[%emt 0:00:12]} c5 {[%emt 0:00:22]} 4. Nf3 {[%emt 0:01:10]} Nc6 {[%emt 0:01:07]} 5. Nbd2 {[%emt 0:00:09]} cxd4 {[%emt 0:00:31]} 6. exd4 {[%emt 0:00:14]} Bg4 {[%emt 0:00:23]} 7. c3 {[%emt 0:02:29]} e6 {[%emt 0:00:44]} 8. Qb3 {[%emt 0:02:42]} Bd6 {[%emt 0:00:22]} 9. Qxb7 {[%emt 0:01:22]} O-O {[%emt 0:01:09]} 10. Qxc6 {[%emt 0:04:23]} Bxf4 {[%emt 0:00:48]} 11. Bd3 {[%emt 0:00:28]} Rb8 {[%emt 0:10:09]} 12. Rb1 {[%emt 0:02:07]} Qa5 {[%emt 0:09:18]} 13. a3 {[%emt 0:09:00]} Bf5 {[%emt 0:15:58]} 14. Bxf5 {[%emt 0:02:19]} exf5 {[%emt 0:06:15]} 15. O-O {[%emt 0:01:50]} Rb6 {[%emt 0:13:52]} 16. Qc5 {[%emt 0:01:53]} Qa6 {[%emt 0:03:41]} 17. b4 {[%emt 0:13:22]} Rb5 {[%emt 0:02:11]} 0-1

[Event "1st Bella Italia International 2022"]
[Site "Lignano"]
[Date "2022.08.22"]
[Round "8.12"]
[White "Grigorian, Roudolph"]
[Black "Seres, Bela"]
[Result "1/2-1/2"]
[ECO "B33"]
[WhiteElo "2101"]
[BlackElo "2207"]
[Annotator "NA RC"]
[PlyCount "67"]
[EventDate "2022.08.18"]
[EventCountry "ITA"]
[SourceTitle "playchess.com"]
[Source "ChessBase"]
[SourceQuality "1"]
[TimeControl "5400+30"]

1. e4 {[%emt 0:00:03]} c5 {[%emt 0:00:10]} 2. Nf3 {[%emt 0:00:06]} Nc6 {[%emt 0:00:08]} 3. d4 {[%emt 0:00:47]} cxd4 {[%emt 0:00:07]} 4. Nxd4 {[%emt 0:00:02]} e5 {[%emt 0:00:20]} 5. Nb5 {[%emt 0:00:21]} d6 {[%emt 0:00:13]} 6. N1c3 {[%emt 0:00:43]} a6 {[%emt 0:00:20]} 7. Na3 {[%emt 0:00:04]} b5 {[%emt 0:00:30]} 8. Nd5 {[%emt 0:00:13]} Nge7 {[%emt 0:01:48]} 9. Be3 {[%emt 0:06:32]} Nxd5 {[%emt 0:01:42]} 10. exd5 {[%emt 0:00:02]} Ne7 {[%emt 0:02:14]} 11. c4 {[%emt 0:00:06]} Nf5 {[%emt 0:04:53]} 12. Bd2 {[%emt 0:04:40]} Be7 {[%emt 0:03:09]} 13. cxb5 {[%emt 0:02:17]} O-O {[%emt 0:00:18]} 14. Be2 {[%emt 0:00:14]} Nd4 {[%emt 0:00:35]} 15. O-O {[%emt 0:01:00]} Bb7 {[%emt 0:08:09]} 16. bxa6 {[%emt 0:02:52]} Bxd5 {[%emt 0:04:56]} 17. b4 {[%emt 0:00:23]} Qb6 {[%emt 0:11:41]} 18. Bd3 {[%emt 0:19:57]} e4 {[%emt 0:04:03]} 19. Qh5 {[%emt 0:16:52]} f5 {[%emt 0:02:49]} 20. Rfe1 {[%emt 0:07:51]} Bf6 {[%emt 0:05:11]} 21. Bf1 {[%emt 0:00:46]} Rxa6 {[%emt 0:11:37]} 22. Nc4 {[%emt 0:05:17]} Qa7 {[%emt 0:02:51]} 23. Ne3 {[%emt 0:07:39]} Bf7 {[%emt 0:04:39]} 24. Qh3 {[%emt 0:06:02]} Rxa2 {[%emt 0:01:54]} 25. Rad1 {[%emt 0:01:35]} Ra3 {[%emt 0:06:26]} 26. Bc1 {[%emt 0:00:58]} Rb3 {[%emt 0:00:05]} 27. Rxd4 {[%emt 0:03:43]} Qxd4 {[%emt 0:00:39]} 28. Nxf5 {[%emt 0:02:39]} Qxb4 {[%emt 0:03:13]} 29. Qg4 {[%emt 0:00:02]} Qxe1 {[%emt 0:00:15]} 30. Nh6+ {[%emt 0:00:06]} Kh8 {[%emt 0:00:38]} 31. Nxf7+ {[%emt 0:00:06]} Kg8 {[%emt 0:00:42]} 32. Nh6+ {[%emt 0:00:12]} Kh8 {[%emt 0:00:02]} 33. Nf7+ {[%emt 0:00:15]} Kg8 {[%emt 0:00:02]} 34. Nh6+ {[%emt 0:00:06]} 1/2-1/2

[Event "1st Bella Italia International 2022"]
[Site "Lignano"]
[Date "2022.08.22"]
[Round "8.13"]
[White "Massironi, Marco"]
[Black "Urbani, Gabriel"]
[Result "1/2-1/2"]
[ECO "C54"]
[WhiteElo "2200"]
[BlackElo "2046"]
[Annotator "TA"]
[PlyCount "106"]
[EventDate "2022.08.18"]
[EventCountry "ITA"]
[SourceTitle "playchess.com"]
[Source "ChessBase"]
[SourceQuality "1"]
[TimeControl "5400+30"]

{[%evp 17,106,0,2,11,21,28,26,0,0,0,0,0,21,19,22,20,13,14,46,36,63,54,75,80,72,66,108,108,95,83,108,107,110,83,125,129,122,96,122,0,0,0,0,0,0,0,0,0,0,0,0,0,0,0,0,0,0,0,0,0,40,0,100,0,0,0,0,0,35,65,73,0,0,0,0,0,0,0,0,0,0,0,0,0,0,0,0,0,0,0,0]} 1. e4 {[%emt 0:08:54]} e5 {[%emt 0:00:14]} 2. Nf3 {[%emt 0:00:05]} Nc6 {[%emt 0:00:16]} 3. Bc4 {[%emt 0:00:07]} Bc5 {[%emt 0:00:17]} 4. c3 {[%emt 0:00:08]} Nf6 {[%emt 0:00:08]} 5. d4 {[%emt 0:00:03]} exd4 {[%emt 0:00:17]} 6. e5 {[%emt 0:00:06]} d5 {[%emt 0:00:18]} 7. Bb5 {[%emt 0:00:03]} Ne4 {[%emt 0:00:25]} 8. cxd4 {[%emt 0:00:07]} Bb6 {[%emt 0:00:17]} 9. Nc3 {[%emt 0:00:17]} O-O {[%emt 0:09:25]} 10. Be3 {[%emt 0:00:16] C54: Giuoco Piano: 4 c3 Nf6, main lines with 5 d4 and 5 d3.} Nxc3 {[%emt 0:12:19]} 11. bxc3 {[%emt 0:00:40]} f6 {[%emt 0:03:15]} 12. exf6 {[%emt 0:02:24] White has an edge.} (12. Bxc6 $5 bxc6 13. Qa4 $11) 12... Qxf6 {[%emt 0:00:21]} 13. O-O {[%emt 0:00:03]} Bg4 {[%emt 0:03:22][%cal Rg4f3]} 14. Be2 {[%emt 0:00:04][%cal Bb5e2,Be2f3,Bf3g4][%mdl 32]} Bxf3 {[%emt 0:08:48]} 15. Bxf3 {[%emt 0:00:25]} Ne7 {[%emt 0:00:33]} 16. Qd2 {[%emt 0:10:30] [#]} c6 $146 {[%emt 0:04:00]} ({Predecessor:} 16... Qg6 17. Bf4 c6 18. Rae1 Rae8 19. Bd1 Nf5 20. Bc2 Qf7 21. Qd3 g6 22. Be5 Bc7 {½-½ (60) Paszewski,M (2342)-Marszalek,M (2280) Krakow 2019}) 17. Bg5 {[%emt 0:06:57]} Qd6 {[%emt 0:00:42]} 18. Rfe1 {[%emt 0:06:41]} Ng6 {[%emt 0:03:29] [#] aiming for ...Bc7.} 19. Bg4 {[%emt 0:01:30] This bishop pair is nice.} Rae8 {[%emt 0:10:39] Prevents Re6.} 20. Rxe8 {[%emt 0:03:48]} Rxe8 {[%emt 0:00:01]} 21. Re1 {[%emt 0:00:11]} Rxe1+ {[%emt 0:07:08]} 22. Qxe1 {[%emt 0:01:50]} Kf7 {[%emt 0:03:40] Inhibits Qe8+.} 23. Qb1 {[%emt 0:01:24]} Nf8 {[%emt 0:06:45]} 24. Qf5+ {[%emt 0:02:29]} Kg8 {[%emt 0:00:09]} 25. h4 {[%emt 0:16:05]} h6 {[%emt 0:06:27]} 26. Bf4 {[%emt 0:09:11]} Qe7 {[%emt 0:00:38]} 27. g3 {[%emt 0:00:50]} Bc7 {[%emt 0:05:29]} 28. Be3 {[%emt 0:02:34]} (28. Bd2 $16) 28... Bxg3 $1 $11 {[%emt 0:02:00]} 29. h5 {[%emt 0:03:53]} Bd6 {[%emt 0:01:41]} 30. Qc8 {[%emt 0:02:12]} Qf7 {[%emt 0:06:37]} 31. a4 {[%emt 0:05:15]} Bf4 {[%emt 0:04:24]} 32. Bxf4 {[%emt 0:01:12]} Qxf4 {[%emt 0:00:01][%mdl 4096] Endgame KQB-KQN} 33. Be6+ {[%emt 0:00:34]} Kh8 {[%emt 0:00:40]} 34. Bf5 {[%emt 0:00:09][%cal Rc8f8]} Kg8 {[%emt 0:00:47]} 35. Be6+ {[%emt 0:00:28]} Kh8 {[%emt 0:00:02]} 36. Bf5 {[%emt 0:01:32][%cal Rc8f8]} Qg5+ {[%emt 0:01:20]} 37. Kf1 {[%emt 0:00:03][%cal Rc8f8]} Qe7 {[%emt 0:00:43]} 38. a5 {[%emt 0:00:44]} a6 {[%emt 0:00:48]} 39. Qb8 {[%emt 0:07:07][%mdl 1024] White has compensation.} Qa3 {[%emt 0:00:57]} (39... Kg8 $11) 40. Kg2 {[%emt 0:02:14]} (40. Qxb7 $16 Qxa5 41. Qc8 (41. Qxc6 Qd8 $16) 41... Qa1+ 42. Kg2) 40... Qe7 {[%emt 0:00:23] ...Qg5+ is the strong threat.} 41. Bc8 {[%emt 0:02:42]} Qg5+ {[%emt 0:00:12]} 42. Qg3 {[%emt 0:00:43] Hoping for Qxg5.} Qe7 {[%emt 0:00:24]} 43. Qe5 {[%emt 0:01:11]} Qf7 {[%emt 0:00:35]} 44. Qb8 {[%emt 0:02:14]} ({White should play} 44. Qf5 $16 Qe7 {[#]} 45. Bxb7 $1 Qxb7 46. Qxf8+ Kh7 47. Qf5+ Kg8 48. Qg4) 44... Qxh5 {[%emt 0:00:48] The position is equal.} 45. Bxb7 {[%emt 0:00:06] Active counter play!} Qg4+ {[%emt 0:00:26]} 46. Qg3 {[%emt 0:00:04]} Qe4+ {[%emt 0:00:15]} 47. Kh2 {[%emt 0:01:14]} Ne6 {[%emt 0:00:20]} 48. Bxa6 {[%emt 0:02:09] Black must now prevent Bd3.} Ng5 {[%emt 0:00:36]} 49. Bb7 {[%emt 0:00:53]} Nf3+ {[%emt 0:00:40]} 50. Kh3 {[%emt 0:00:26]} Ng5+ {[%emt 0:00:21]} 51. Kh2 {[%emt 0:00:01]} Nf3+ {[%emt 0:00:07]} 52. Kh3 {[%emt 0:00:24]} Ng5+ {[%emt 0:00:16]} 53. Kh2 {[%emt 0:00:03]} Nf3+ {[%emt 0:02:15] Weighted Error Value: White=0.10 (very precise) /Black=0.12 (very precise)} 1/2-1/2

[Event "1st Bella Italia International 2022"]
[Site "Lignano"]
[Date "2022.08.22"]
[Round "8.14"]
[White "Arana Garate, Jon"]
[Black "Titze, Leo"]
[Result "1/2-1/2"]
[ECO "D02"]
[WhiteElo "1933"]
[BlackElo "2071"]
[Annotator "NA RC"]
[PlyCount "38"]
[EventDate "2022.08.18"]
[EventCountry "ITA"]
[SourceTitle "playchess.com"]
[Source "ChessBase"]
[SourceQuality "1"]
[TimeControl "5400+30"]

1. d4 {[%emt 0:00:04]} Nf6 {[%emt 0:10:41]} 2. Bf4 {[%emt 0:00:47]} d5 {[%emt 0:00:26]} 3. e3 {[%emt 0:00:21]} c5 {[%emt 0:00:25]} 4. c3 {[%emt 0:00:27]} e6 {[%emt 0:00:15]} 5. Nd2 {[%emt 0:00:30]} Nc6 {[%emt 0:00:29]} 6. Ngf3 {[%emt 0:00:20]} Bd6 {[%emt 0:00:25]} 7. Bg3 {[%emt 0:00:23]} Qe7 {[%emt 0:01:06]} 8. Ne5 {[%emt 0:01:02]} O-O {[%emt 0:01:03]} 9. Bd3 {[%emt 0:00:55]} Nd7 {[%emt 0:01:29]} 10. Nxd7 {[%emt 0:02:46]} Qxd7 {[%emt 0:01:11]} 11. Bxd6 {[%emt 0:00:17]} Qxd6 {[%emt 0:00:10]} 12. dxc5 {[%emt 0:00:15]} Qxc5 {[%emt 0:01:21]} 13. Bxh7+ {[%emt 0:01:30]} Kxh7 {[%emt 0:00:15]} 14. Qh5+ {[%emt 0:00:12]} Kg8 {[%emt 0:00:02]} 15. Ne4 {[%emt 0:00:17]} g6 {[%emt 0:00:15]} 16. Qg5 {[%emt 0:12:28]} Qe7 {[%emt 0:00:48]} 17. Nf6+ {[%emt 0:00:11]} Kg7 {[%emt 0:00:05]} 18. Nh5+ {[%emt 0:00:16]} Kg8 {[%emt 0:00:35]} 19. Nf6+ {[%emt 0:01:08]} Kg7 {[%emt 0:00:07]} 1/2-1/2